Cogmind - Beta 14 @@@ ROGUE MODE // 2024.12.04 @ 19:39:09 Player: Hoodles Result: Destroyed by Y-45 Defender with Beam Rifle Performance ------------- Evolutions (2) 1000 Regions Visited (3) 600 Robots Destroyed (13) 65 Value Destroyed (328) 328 Prototype IDs (1) 20 Alien Tech Used (0) 0 Bonus (0) 0 TOTAL SCORE: 2013 Bonus ------- None Cogmind --------- Core Integrity 0/550 Matter 22/300 Energy 231/275 System Corruption 0% Temperature Cool (9) Movement Treading (160) Location -8/Materials Parts ------- > --- POWER (3) -------- Deuterium Engine > --- PROPULSION (3) --- Improved Treads > --- UTILITY (2) ------ Disposable Heat Sink Field Recycling Unit > --- WEAPON (3) ------- (None) > --- INVENTORY (5) ---- Micro Nuclear Core Arc Projector Gauss Cannon Peak State ------------ > --- POWER ------------ Improved Ion Engine Improved Ion Engine Light Nuclear Core > --- PROPULSION ------- Light Treads Improved Treads > --- UTILITY ---------- Disposable Heat Sink Particle Charger > --- WEAPON ----------- Particle Gun Heavy Assault Rifle Grenade Launcher > --- INVENTORY -------- Beam Rifle [Rating: 20] Favorites ----------- Power Improved Ion Engine Engine Improved Ion Engine Power Core Light Nuclear Core Propulsion Light Treads Treads Light Treads Leg Aluminum Leg Wheel Wheel Flight Unit Flight Unit Utility Medium Armor Plating Device Disposable Heat Sink Protection Medium Armor Plating Weapon Beam Rifle Energy Gun Beam Rifle Ballistic Gun Heavy Assault Rifle Launcher Grenade Launcher Build | -11 -10 -9 -8 ------- Run | Yrd Mat Mat Mat Slots Evolved 4 | . . 2 2 Power 2 | . . 1 1 Propulsion 1 | . . 1 . Utility . | . . . . Weapon 1 | . . . 1 Parts Attached 44 | 6 3 19 16 Power 7 | 1 . 4 2 Engine 6 | 1 . 3 2 Core 1 | . . 1 . Reactor . | . . . . Propulsion 15 | 2 2 6 5 Treads 5 | . . 3 2 Leg 6 | . . 3 3 Wheel 2 | 2 . . . Hover . | . . . . Flight 2 | . 2 . . Utility 5 | . . 2 3 Device 4 | . . 1 3 Storage . | . . . . Processor . | . . . . Hackware . | . . . . Protection 1 | . . 1 . Artifact . | . . . . Weapon 17 | 3 1 7 6 Energy Gun 12 | 3 1 4 4 Energy Cannon . | . . . . Ballistic Gun 3 | . . 2 1 Ballistic Cannon . | . . . . Launcher 2 | . . 1 1 Special Weapon . | . . . . Impact Weapon . | . . . . Slashing Weapon . | . . . . Piercing Weapon . | . . . . Special Melee Weapon . | . . . . Unidentified Prototypes 1 | . . . 1 Parts Lost 18 | . 1 . 17 Power 3 | . . . 3 Propulsion 7 | . 1 . 6 Utility 2 | . . . 2 Weapon 6 | . . . 6 Highest Loss Streak 11 | . 1 . 11 To Critical Strikes . | . . . . Average Slot Usage (%) 80 | . 67 92 71 Engine 13 | . 14 17 8 Core 4 | . . 4 6 Treads 15 | . . 15 19 Leg 5 | . . 9 2 Wheel 2 | . 15 . . Flight 1 | . 9 1 . Device 9 | . . 10 10 Protection 7 | . . 10 5 Energy Gun 19 | . 28 19 15 Ballistic Gun 2 | . . 2 2 Peak Build Rating 20 | 5 5 16 20 Average Rating 11 | 3 4 13 15 On Entrance 6 | . 5 5 16 Naked Turns . | . . . . Heaviest Build 31 | 7 6 26 31 Greatest Support 60 | 20 20 60 60 Greatest Overweight (x) 5 | . 1 1 5 Average Overweight (x) . | . . . . Largest Inventory Capacity 5 | 5 5 5 5 Average Capacity 5 | 5 5 5 5 Most Carried 5 | 5 5 5 5 Average Carried 3 | 3 4 3 3 Final Capacity 5 | 5 5 5 5 Final Carried 5 | 5 4 5 3 Class Distribution -------------------- 85% | Mutant 14% | Gunner Dominant Class ---------------- Mutant | -10/Materials Mutant | -9/Materials Mutant | -8/Materials Resources | -11 -10 -9 -8 ----------- Run | Yrd Mat Mat Mat Matter Collected 399 | 250 35 94 20 Remotely . | . . . . Salvage Created 300 | 55 46 106 93 Parts 18 | 2 6 8 2 Haulers Intercepted . | . . . . Recyclers Shooed . | . . . . Parts Field Recycled . | . . . . Retrieved Matter . | . . . . Parts Self-Destructed . | . . . . Prevented . | . . . . Kills | -11 -10 -9 -8 ------- Run | Yrd Mat Mat Mat Combat Hostiles Destroyed 12 | 1 3 5 3 Guns 10 | 1 3 4 2 AOE 2 | . . 1 1 Classes Destroyed 4 | 2 1 1 . Worker 1 | 1 . . . Swarmer 6 | . 3 3 . Grunt 5 | 1 . 1 3 Sentry 1 | . . 1 . Best Kill Streak 3 | 1 3 3 2 Combat Bots Only 3 | 1 3 3 2 Max Kills in Single Turn 2 | 1 2 2 1 Gunslinging 1 | . 1 . . Exploded 1 | . . 1 1 Melee . | . . . . Uniques/NPCs Destroyed . | . . . . Combat | -11 -10 -9 -8 -------- Run | Yrd Mat Mat Mat Hostile Shots Fired 219 | 12 29 30 148 Missed 57 | 3 4 6 44 Damage Taken 2524 | 97 201 309 1917 Core 696 | 23 62 48 563 Absorbed by Shields . | . . . . Core Remaining (%) 81 | 90 66 88 . Volleys Fired 42 | 7 7 7 21 Largest 3 | 2 2 2 3 Hottest 168 | 100 90 96 168 Shots Fired 72 | 13 14 14 31 Gun 66 | 13 14 12 27 Cannon . | . . . . Launcher 6 | . . 2 4 Special . | . . . . Kinetic 2 | . . 2 . Thermal 64 | 13 14 10 27 Explosive 6 | . . 2 4 Electromagnetic . | . . . . Robot Hit Streak 7 | 3 2 7 4 Robot Miss Streak 4 | 3 3 2 4 Penetration Max . | . . . . Secondary Targets 2 | . 2 . . Max Gunslinging Chain 1 | . 1 . . Shots Hit Robots 42 | 8 5 10 19 Core Hits 23 | 3 3 7 10 Critical Kills . | . . . . Critical Parts Destroyed . | . . . . Critical Strikes 2 | . 1 . 1 Burn 2 | . 1 . 1 Melee Attacks . | . . . . Impact . | . . . . Slashing . | . . . . Piercing . | . . . . Sneak Attacks . | . . . . Combat Hostiles . | . . . . Follow-up Attacks . | . . . . Damage Inflicted 1014 | 98 59 333 524 Guns 528 | 98 59 109 262 Cannons . | . . . . Explosions 459 | . . 218 241 Melee . | . . . . Ramming 27 | . . 6 21 Kinetic 25 | . . 25 . Thermal 503 | 98 59 84 262 Explosive 459 | . . 218 241 Electromagnetic . | . . . . Impact . | . . . . Slashing . | . . . . Piercing . | . . . . Highest Corruption . | . . . . Average Corruption . | . . . . Corruption Purged . | . . . . Corruption Blocked . | . . . . Overload Shots . | . . . . Overflow Damage 26 | . . 19 7 Projectiles . | . . . . Explosions 26 | . . 19 7 Melee . | . . . . Knockbacks 1 | . . . 1 Impact 1 | . . . 1 Kinetic . | . . . . Secondary . | . . . . Self-Inflicted Damage 95 | . . 67 28 Shots 4 | . . 2 2 Rammed 2 | . . 1 1 Targets Rammed 5 | . . 2 3 Kicked 3 | . . 1 2 Crushed . | . . . . Highest Temperature 759 | 231 190 196 759 Average Temperature 196 | 107 90 62 346 Received Heat Transfer 954 | 54 . 54 846 Effects 42 | 2 . . 40 Shutdowns 8 | . . . 8 Interference 9 | 2 . . 7 Matter Decay 5 | . . . 5 Short Circuit 3 | . . . 3 Damage (minor) 1 | . . . 1 Damage (major) 13 | . . . 13 Damage (core) 3 | . . . 3 Siege Activations . | . . . . Robots Corrupted . | . . . . Combat Hostiles . | . . . . Parts Fried . | . . . . Impact Corruptions . | . . . . Robots Melted . | . . . . Combat Hostiles . | . . . . Parts Melted 1 | . . . 1 Heat Transferred 1383 | 284 235 198 666 Parts Sabotaged . | . . . . Parts Stolen . | . . . . Parts Stripped . | . . . . Power Chain Reactions . | . . . . Alert | -11 -10 -9 -8 ------- Run | Yrd Mat Mat Mat Peak Influence 197 | 25 91 197 80 Initial 38 | . 16 38 12 Average 62 | 9 56 114 27 Maximum Alert Level . | . . . . Low Security (%) 100 | 100 100 100 100 Level 1 . | . . . . Level 2 . | . . . . Level 3 . | . . . . Level 4 . | . . . . Level 5 . | . . . . High Security . | . . . . Max Security . | . . . . Squads Dispatched 2 | . . 1 1 Investigation . | . . . . Extermination . | . . . . Reinforcement 2 | . . 1 1 Assault . | . . . . Garrison . | . . . . Intercept . | . . . . Searches Triggered . | . . . . Construction Impeded . | . . . . Haulers Reinforced . | . . . . Active Scanning Responses . | . . . . Cargo Convoy Interrupts . | . . . . Stealth | -11 -10 -9 -8 --------- Run | Yrd Mat Mat Mat Distress Signals 1 | . . 1 . Communications Jammed . | . . . . Distress Signals . | . . . . Times Spotted 31 | 1 5 8 17 Peak Tracking Total 7 | 1 4 3 7 Tactical Retreats 2 | . . 1 1 Traps | -11 -10 -9 -8 ------- Run | Yrd Mat Mat Mat Traps Triggered . | . . . . Indirectly . | . . . . Trap Hack Attempts . | . . . . Triggered . | . . . . Disarmed . | . . . . Reprogrammed . | . . . . Reused . | . . . . Traps Extracted . | . . . . Installed . | . . . . Triggered . | . . . . Machines | -11 -10 -9 -8 ---------- Run | Yrd Mat Mat Mat Machines Disabled 1 | . . 1 . Max in Single Turn 1 | . . 1 . Machines Repaired . | . . . . Machines Dismantled . | . . . . Machines Sabotaged . | . . . . Overloaded Fab Kills . | . . . . Hacking | -11 -10 -9 -8 --------- Run | Yrd Mat Mat Mat Machines Accessed . | . . . . Terminals . | . . . . Fabricators . | . . . . Repair Stations . | . . . . Recycling Units . | . . . . Scanalyzers . | . . . . Garrison Access . | . . . . Total Hacks . | . . . . Successful . | . . . . Failed . | . . . . Catastrophic . | . . . . Database Lockouts . | . . . . Manual . | . . . . Terminals . | . . . . Fabricators . | . . . . Repair Stations . | . . . . Recycling Units . | . . . . Scanalyzers . | . . . . Garrison Access . | . . . . Terminal Hacks . | . . . . Fabricator Hacks . | . . . . Repair Station Hacks . | . . . . Recycling Unit Hacks . | . . . . Scanalyzer . | . . . . Garrison Access Hacks . | . . . . Unauthorized Hacks . | . . . . Terminals . | . . . . Fabricators . | . . . . Repair Stations . | . . . . Recycling Units . | . . . . Scanalyzers . | . . . . Garrison Access . | . . . . Data Cores Recovered . | . . . . Used . | . . . . Hacking Detections . | . . . . Full Trace Events . | . . . . Feedback Events . | . . . . Feedback Blocked . | . . . . Robot Schematics Acquired . | . . . . Robots Built . | . . . . Authchips . | . . . . Time . | . . . . Total Robot Build Rating . | . . . . Part Schematics Acquired . | . . . . Parts Built . | . . . . Authchips . | . . . . Time . | . . . . Total Part Build Rating . | . . . . Parts Repaired . | . . . . Time . | . . . . Parts Recycled . | . . . . Recycled Matter . | . . . . Retrieved Matter . | . . . . Retrieved Components . | . . . . Parts Scanalyzed . | . . . . Part Schematics Acquired . | . . . . Parts Damaged . | . . . . Bothacking | -11 -10 -9 -8 ------------ Run | Yrd Mat Mat Mat Used RIF Installer . | . . . . Robots Hacked . | . . . . Non-combat . | . . . . Combat . | . . . . Robot Hacks Applied . | . . . . Relay Couplers Released . | . . . . Fabnet Peak Effective % . | . . . . Robots Rewired . | . . . . Allies Hacked . | . . . . Hacks Repelled . | . . . . Allies | -11 -10 -9 -8 -------- Run | Yrd Mat Mat Mat Total Allies . | . . . . Largest Group . | . . . . Highest-Rated Group . | . . . . Highest-Rated Ally . | . . . . Total Orders . | . . . . Ally Attacks . | . . . . Total Damage . | . . . . Kills . | . . . . Allies Corrupted . | . . . . Allies Melted . | . . . . Intel | -11 -10 -9 -8 ------- Run | Yrd Mat Mat Mat Robot Analysis Total . | . . . . Derelict Logs Recovered . | . . . . Drone Launches . | . . . . Drone Recoveries . | . . . . Exploration | -11 -10 -9 -8 ------------- Run | Yrd Mat Mat Mat Turns Passed 1065 | 159 120 428 358 Spaces Moved 710 | 171 136 231 172 Core 46 | 45 . . 1 Treads 259 | . . 114 145 Legs 109 | . . 83 26 Wheels 181 | 126 55 . . Hover . | . . . . Flight 115 | . 81 34 . Fastest Speed 37 | 50 37 47 120 Average Speed 117 | 72 61 153 158 Slowest Speed 300 | 80 125 240 300 Overloaded Moves . | . . . . Propulsion Burnouts . | . . . . Robots Hopped 2 | . 2 . . Cave-ins Triggered . | . . . . Exploration Rate (%) 19 | 11 21 20 26 Regions Visited 3 Branch Regions . Pre-discovered Areas . | . . . . Known Exits Taken . | . . . . Unknown Exits Taken 3 | 1 1 1 . Scrap Searched . | . . . . Spaces Dug . | . . . . Terrain Destroyed 26 | . . 8 18 Melee . | . . . . Projectile . | . . . . AOE 26 | . . 8 18 Terrain Rammed . | . . . . Walls Destroyed . | . . . . Machines Disabled . | . . . . Actions | -11 -10 -9 -8 --------- Run | Yrd Mat Mat Mat Total 876 | 194 157 297 228 Wait 9 | . 6 . 3 Move 704 | 170 132 230 172 Hop 1 | . 1 . . Pick Up 46 | 10 4 21 11 Fast Attach . | . . . . Attach 39 | 6 3 16 14 Detach 4 | 1 . 2 1 Swap 5 | . . 3 2 Drop 21 | . 4 16 1 Fire 42 | 7 7 7 21 Melee . | . . . . Ram . | . . . . Kick 3 | . . 1 2 Crush 2 | . . 1 1 Escape Stasis . | . . . . Rewire . | . . . . Trap . | . . . . Miscellaneous . | . . . . Route ------- -11/Scrapyard -10/Materials -9/Materials -8/Materials History --------- Turn | Location | Event 2 | -11/Scrapyard | Met Revision 17 75 | -11/Scrapyard | Discovered new exit (range 8) 160 | -11/Scrapyard | Entered Materials 275 | -10/Materials | Discovered new exit (range 14) 280 | -10/Materials | Entered another Materials area 280 | -9/Materials | Evolved 2 slots: Power x1, Propulsion x1 338 | -9/Materials | Build established: Mutant 650 | -9/Materials | Discovered new exit (range 13) 708 | -9/Materials | Entered another Materials area 708 | -8/Materials | Evolved 2 slots: Power x1, Weapon x1 908 | -8/Materials | Core integrity fell below 50% 986 | -8/Materials | Lost 11 parts (2p3n2u4w) 1051 | -8/Materials | Core integrity fell below 20% 1066 | -8/Materials | Destroyed by Y-45 Defender with Beam Rifle Last Messages --------------- Hvy. Assault Rifle destroyed. Acquired Imp. Aluminum Leg. Nuclear Reactor explodes. G-47 Trooper destroyed. Imp. Medium Laser destroyed. Kicked G-47 Trooper out of the way. The unstable cave ceiling collapses. Critical hit (Burn: +37). Imp. Ion Engine destroyed. Kicked U-05 Engineer out of the way. M-13 Machinist repairs G-47 Trooper. Critical hit (Burn: +37). Acquired Deuterium Engine. M-13 Machinist repairs Y-45 Defender. Imp. Aluminum Leg destroyed. Acquired Gauss Cannon. Acquired Mic. Nuclear Core. Imp. Aluminum Leg destroyed. Acquired Arc Projector. [Achievement: First Step to Greatness] Map ----- +----------------------------------------------------+ | ?????????????????????????????????? | | ?????????????????????????????????? | | ?????????????????????????????????? | | ###??????????????????????????????? | | #??????????????????????????????? | | #??????????????????????????????? | | #??????????????????????????????? | | #??????????????????????????????? | | ####???????????#???????????????? | | # ##???????? ##??????????????? | | ### ####### #??????????????? | | = [ #??????????????? | | % T #??????????????? | | #??????????????? | | /####### ### #??????????????? | | ## #????####??????????????? | | ""## #??????????????????????? | | Y"## #??????????????????????? | | " ""## #??????????????????????? | | " ## #??????????????????????? | | " ## #??????????????????????? | | ## #?###+##??#+#####??????? | | ####/### ### #### ]]#??????? | | ### Y gg ]#??????? | | Y *#??????? | | ###+######/## ###### *@#??????? | | # ## ##????# [#??????? | | # [%* # #?????# [[#??????? | | # # #?????#####??????? | | # #????????????????? | | # #????????????????? | | # ??????????????? | | # ??????????????? | | #### ##+#???????????????? | | ???? ! ????????????????? | | ????# # ????????????????? | | ?????##### """ ????????????????? | | ??????????? """??????????????????? | | ????????????"""??????????????????? | | ?????????????????????????????????? | | ?????????????????????????????????? | | ?????????????????????????????????? | | ?????????????????????????????????? | | ?????????????????????????????????? | | ?????????????????????????????????? | | ?????????????????????????????????? | | | | | | | | | +----------------------------------------------------+ Best States ------------- Heat Dissipation 31 Coolant Potential 50 Energy Generation 21 Energy Capacity 430 Matter Stores 300 Matter Capacity 300 Sight Range 16 Terrain Scan Density 10 Armor Coverage 225 Evasion (%) 62 Recoil Reduction 3 Particle Charging 15 Item Schematics ----------------- None Robot Schematics ------------------ None Fabricated ------------ Nothing Alien Tech Used ----------------- None Achievements -------------- First Step to Greatness Let's See Who's Tougher Risk Taker Uninvited Guest Challenges ------------ None Game ------ Seed EtherialHeartReconstructor Manual? 0 Play Time 00:32:26 Cumulative 0.4 hours Start 2024.12.04 @ 19:03:15 End 2024.12.04 @ 19:39:09 Sessions 1 Manual Loads 0 Difficulty Rogue Special Mode None Game No. 1 Rogue 1 Adventurer 0 Explorer 0 Win Type - Total 0 Types 0/0/0/0/0/0/0/0/0 Lore% 0 Gallery% 1 Achievement% 1 Wizard Run 0 Options --------- Layout 1 ASCII 0 Keyboard 0 Movement Arrows Keybinds 0 Fullscreen 1 Font 28/SmallcapsGlow Map View 50x43 Zoom Use 0% Tactical HUD 0 Map Filters NONE Filters NONE Steam 1 RUN: a2f6c84b-487d-4981-9043-dc366bfd56a1